bitfinex/quotes_SOLUSD_20220128
["timestamp","ask_amount","ask_price","bid_price","bid_amount"]
[1643379915762,23.7899,90.087,90.012,0.25]
[1643379916965,16.67,90.08,90.012,0.25]
[1643379919167,16.67,90.08,90.011,6.0]
[1643379920368,16.67,90.08,90.012,0.25]
[1643379921972,16.67,90.08,90.011,6.0]
[1643379922569,16.67,90.08,90.0,6.0]
[1643379922970,16.67,90.08,89.991,6.0]
[1643379923471,16.67,90.08,89.992,49.05838161]
[1643379923671,16.67,90.08,89.992,49.30838161]
[1643379923872,16.67,90.08,89.993,2.00583263]
[1643379924272,16.67,90.08,90.003,6.0]
[1643379924773,16.67,90.08,90.004,0.25]
[1643379925172,16.67,90.08,90.003,6.0]
[1643379925573,16.67,90.08,89.971,24.71993263]
[1643379925574,16.674,90.06,89.971,24.71993263]
[1643379925772,112.1,90.059,89.971,22.7141]
[1643379926184,112.1,90.059,89.951,26.73003263]
[1643379926373,45.6714,90.058,89.974,6.0]
[1643379926572,112.1,90.057,89.972,44.2711399]
[1643379926774,112.1,90.057,89.973,0.25]
[1643379926972,16.677,90.05,89.973,0.25]
[1643379927173,16.677,90.05,89.961,6.0]
[1643379927473,16.677,90.05,89.962,0.25]
[1643379927673,16.677,90.05,89.962,6.25]
[1643379927873,16.677,90.05,89.962,0.25]
[1643379928098,16.677,90.05,89.964,37.73302627]
[1643379928273,16.677,90.05,89.965,0.25]
[1643379928473,16.677,90.05,89.974,6.0]
[1643379930677,6.0,90.04,89.974,6.0]
[1643379930879,16.677,90.05,89.975,2.25583263]
[1643379931279,45.6714,90.058,89.976,2.00583263]
[1643379931478,45.6714,90.058,89.986,39.40738381]
[1643379931679,45.6714,90.058,89.986,45.40738381]
[1643379931881,45.6714,90.058,89.987,2.25583263]
[1643379932079,16.673,90.07,89.987,2.25583263]
[1643379932685,16.673,90.07,89.988,2.00583263]
[1643379932889,16.673,90.07,89.989,0.25]
[1643379933088,112.1,90.069,89.989,0.25]
[1643379933286,16.678,90.05,89.99,2.00583263]
[1643379933486,112.1,90.039,89.99,2.00583263]
[1643379933688,112.1,90.039,89.924,111.9]
[1643379933889,49.1034,90.038,89.934,6.0]
[1643379934688,16.681,90.03,89.924,111.9]
[1643379934888,30.261,90.03,89.924,111.9]
[1643379935290,112.1,90.029,89.886,112.1]
[1643379935491,112.1,90.029,89.9,3.04675004]
[1643379935703,112.1,90.029,89.9,69.9463805]
[1643379935904,112.1,90.029,89.901,3.04675004]
[1643379936104,112.1,90.029,89.911,5.5]
[1643379936306,112.1,90.029,89.912,0.25]
[1643379936503,112.1,90.029,89.911,5.5]
[1643379937110,16.687,89.99,89.9,38.66207959]
[1643379937307,49.1034,90.038,89.9,38.66207959]
[1643379937308,2.95669142,90.062,89.915,111.9]
[1643379937511,48.6776,90.077,89.93,13.58]
[1643379937708,48.6776,90.077,89.931,70.65850562]
[1643379937907,112.1,90.076,89.931,81.44202929]
[1643379938108,48.6776,90.077,89.931,45.68713672]
[1643379938109,112.1,90.059,89.931,45.68713672]
[1643379938312,13.58,90.05,89.941,6.0]
[1643379938508,112.1,90.048,89.941,6.0]
[1643379938709,112.1,90.039,89.941,6.0]
[1643379939008,48.0019,90.038,89.942,6.0]
[1643379939410,16.685,90.03,89.942,6.0]
[1643379939810,112.1,90.029,89.942,6.0]
[1643379940613,112.1,90.029,89.941,6.0]
[1643379941014,16.682,90.02,89.941,6.0]
[1643379941416,112.1,90.019,89.942,0.25]
[1643379944019,16.684,90.01,89.942,0.25]
[1643379944216,16.684,90.01,89.943,2.00583263]
[1643379944416,22.9367,90.018,89.944,0.25]
[1643379944719,24.3965,90.038,89.953,6.0]
[1643379944917,24.3965,90.038,89.954,43.38959449]
[1643379945118,16.677,90.05,89.964,6.0]
[1643379945317,16.677,90.05,89.965,0.25]
[1643379946116,16.677,90.05,89.965,6.25]
[1643379946517,16.677,90.05,89.966,2.00583263]
[1643379946719,24.8187,90.049,89.966,2.00583263]
[1643379946918,24.8187,90.049,89.967,0.25]
[1643379947323,24.8187,90.049,89.968,2.00583263]
[1643379947521,24.8187,90.049,89.969,36.9872532]
[1643379947721,24.8187,90.049,89.969,37.2372532]
[1643379948019,24.8187,90.049,89.97,2.00583263]
[1643379948419,24.8187,90.049,89.971,0.25]
[1643379948820,24.8187,90.049,89.972,2.00583263]
[1643379949020,24.8187,90.049,89.982,6.0]
[1643379949222,24.8187,90.049,89.983,35.07075057]
[1643379949624,24.8187,90.049,89.984,2.25583263]
[1643379949826,24.8187,90.049,89.993,6.0]
[1643379950024,24.8187,90.049,89.985,2.00583263]
[1643379950624,24.8187,90.049,89.995,6.0]
[1643379950825,69.152,90.1,89.996,0.25]
[1643379951026,6.0,90.09,89.996,2.25583263]
[1643379951224,6.0,90.09,89.997,39.2088896]
[1643379951424,6.0,90.09,89.998,0.25]
[1643379951627,6.0,90.09,90.007,6.0]
[1643379951824,6.0,90.09,90.008,0.25]
[1643379952025,24.3579,90.122,90.008,6.25]
[1643379952228,24.3579,90.122,90.009,61.59239905]
[1643379952429,24.3579,90.122,90.01,13.58]
[1643379952624,24.3579,90.122,90.02,44.83708733]
[1643379952826,16.664,90.12,90.021,0.25]
[1643379953026,16.664,90.12,90.021,6.25]
[1643379953427,16.664,90.12,90.03,6.0]
[1643379953627,16.664,90.12,90.031,6.0]
[1643379953827,16.664,90.12,90.031,6.25]
[1643379954028,16.664,90.12,90.032,6.0]
[1643379954350,16.664,90.12,90.042,48.74334479]
[1643379954730,16.664,90.12,90.043,0.25]
[1643379954931,16.664,90.12,90.052,6.0]
[1643379955728,16.664,90.12,90.042,48.74334479]
[1643379956433,16.664,90.12,90.01,15.58583263]
[1643379956630,16.164,90.12,90.031,6.0]
[1643379957032,16.164,90.12,90.01,6.0]
[1643379957438,16.164,90.12,90.011,34.97589725]
[1643379957633,16.164,90.12,90.021,5.55303098]
[1643379957834,112.1,90.119,90.021,5.55303098]
[1643379958033,16.668,90.1,90.021,5.55303098]
[1643379958434,16.668,90.1,90.011,34.97589725]
[1643379958740,112.1,90.098,90.012,0.25]
[1643379959134,16.67,90.09,89.98,2.00583263]
[1643379959336,16.67,90.09,89.989,0.25]
[1643379959537,24.6898,90.089,89.989,0.25]
[1643379959735,24.6898,90.089,89.99,2.00583263]
[1643379960037,24.6898,90.089,89.991,40.8524863]
[1643379960236,23.0462,90.088,89.991,41.1024863]
[1643379960436,23.0462,90.088,89.992,2.00583263]
[1643379960836,23.0462,90.088,89.991,40.8524863]
[1643379961036,16.673,90.08,90.001,6.0]
[1643379961236,16.673,90.08,89.991,40.8524863]
[1643379961637,16.673,90.08,89.992,2.00583263]
[1643379962037,16.673,90.08,90.002,6.0]
[1643379962237,16.673,90.08,89.993,0.25]
[1643379962438,16.673,90.08,90.003,0.25]
[1643379962641,6.0,90.07,90.003,0.25]
[1643379962841,6.0,90.07,90.001,6.0]
[1643379963239,6.0,90.07,90.004,2.00583263]
[1643379963440,16.673,90.08,90.005,35.33640254]
[1643379964641,55.558,90.13,90.006,2.25583263]
[1643379964841,48.5108,90.121,90.015,6.0]
[1643379965043,6.0,90.112,90.017,6.0]
[1643379965346,6.0,90.112,90.02,6.0]
[1643379965543,6.0,90.112,90.026,6.0]
[1643379966046,6.0,90.112,90.031,6.0]
[1643379966446,6.0,90.112,90.032,0.25]
[1643379967347,112.1,90.111,90.021,38.73248299]
[1643379967548,16.668,90.1,90.021,38.73248299]
[1643379967952,16.668,90.1,90.0,13.58]
[1643379968148,23.0682,90.099,90.001,0.25]
[1643379968349,112.1,90.098,89.977,14.01029905]
[1643379968551,112.1,90.098,89.977,12.00446642]
[1643379968749,112.1,90.098,89.967,2.00583263]
[1643379969051,112.1,90.098,89.968,37.20389967]
[1643379969251,16.67,90.09,89.968,37.20389967]
[1643379969469,24.9692,90.089,89.969,2.00581421]
[1643379969669,24.9692,90.089,89.969,2.25581421]
[1643379969870,24.9692,90.089,89.98,112.1]
[1643379970071,24.9692,90.089,89.99,6.0]
[1643379970273,24.9692,90.089,89.991,36.10191537]
[1643379970476,24.9692,90.089,89.991,38.10772958]
[1643379970673,24.9692,90.089,90.001,6.0]
[1643379970873,24.9692,90.089,90.002,0.25]
[1643379971073,24.9692,90.089,90.002,8.25581421]
[1643379971272,24.9692,90.089,90.003,2.00581421]
[1643379971671,24.9692,90.089,90.001,6.0]
[1643379973080,24.9692,90.089,90.002,2.00581421]
[1643379973476,112.1,90.088,90.012,6.0]
[1643379973675,6.0,90.078,89.991,35.85191537]
[1643379974174,6.0,90.078,89.992,2.00581421]
[1643379974777,6.0,90.078,89.993,0.25]
[1643379975177,6.0,90.078,89.994,2.00581421]
[1643379975374,6.0,90.078,89.995,0.25]
[1643379976177,16.672,90.08,89.995,0.25]
[1643379976577,16.672,90.08,89.996,2.00654394]
[1643379977779,112.1,90.079,89.996,2.00654394]
[1643379977979,16.672,90.08,89.996,2.00654394]
[1643379978181,16.672,90.08,89.997,0.25]
[1643379978578,16.672,90.08,89.998,2.00654394]
[1643379978879,16.672,90.08,89.999,0.25]
[1643379979080,16.672,90.08,89.998,2.00654394]
[1643379979282,16.672,90.08,89.974,2.00654394]
[1643379979283,6.0,90.07,89.974,2.00654394]
[1643379979480,16.675,90.06,89.984,0.25]
[1643379979781,3.07051382,90.095,89.985,114.10654394]
[1643379979982,3.07051382,90.109,89.99,13.58]
[1643379980188,6.0,90.085,89.995,6.0]
[1643379980382,3.07051382,90.115,90.001,48.60641196]
[1643379980582,6.0,90.105,90.011,6.0]
[1643379980786,6.0,90.105,90.012,0.25]
[1643379980982,16.669,90.1,90.012,6.25]
[1643379981283,24.6113,90.099,90.013,2.00654394]
[1643379981583,24.6113,90.099,90.023,6.0]
[1643379981882,24.6113,90.099,90.02,49.06500757]
[1643379983583,24.6113,90.099,90.03,6.0]
[1643379983982,24.6113,90.099,90.02,49.06500757]
[1643379984784,24.6113,90.099,90.013,2.00654394]
[1643379984985,24.6113,90.099,90.002,22.6835]
[1643379985186,3.09038176,90.098,90.012,6.0]
[1643379985387,3.09038176,90.098,90.002,22.6835]
[1643379985790,3.09038176,90.098,90.003,44.5992879]
[1643379985990,24.6113,90.099,90.003,44.5992879]
[1643379986688,6.0,90.089,90.003,44.5992879]
[1643379986889,24.2018,90.088,90.003,44.5992879]
[1643379987688,24.2018,90.088,90.003,0.25]
[1643379987890,24.2018,90.088,89.996,24.8686]
[1643379988288,3.09235159,90.087,89.996,24.8686]
[1643379988492,16.672,90.08,89.978,17.98527625]
[1643379988689,24.2739,90.079,89.99,6.0]
[1643379988888,27.36625159,90.079,89.99,6.0]
[1643379989089,24.2739,90.079,89.99,6.0]
[1643379989288,3.09334071,90.078,89.991,0.25]
[1643379989491,24.2739,90.079,89.991,2.00654394]
[1643379989689,24.2739,90.079,89.992,2.00654394]
[1643379989888,24.2739,90.079,89.993,39.33259081]
[1643379990291,24.2739,90.079,90.003,6.0]
[1643379990688,24.2739,90.079,90.004,6.0]
[1643379991389,24.2739,90.079,90.005,2.01322225]
[1643379991892,24.2739,90.079,90.006,0.25]
[1643379992190,24.2739,90.079,90.007,2.01322225]
[1643379992390,24.2739,90.079,90.008,41.23708364]
[1643379992589,24.2739,90.079,90.008,41.48708364]
[1643379992790,24.2739,90.079,90.003,6.0]
[1643379993394,24.2739,90.079,90.004,0.25]
[1643379993591,24.2739,90.079,90.003,2.01322225]
[1643379993794,24.2739,90.079,89.991,16.8355]
[1643379993991,24.2739,90.079,90.0,43.43783765]
[1643379994191,24.2739,90.079,90.001,6.0]
[1643379994793,24.2739,90.079,90.002,2.01322225]
[1643379995393,24.2739,90.079,90.001,6.0]
[1643379995394,1.5460063,90.072,90.001,6.0]
[1643379995795,1.5460063,90.071,90.001,6.0]
[1643379995998,1.5460063,90.069,90.001,6.0]
[1643379996399,1.5460063,90.069,89.998,6.0]
[1643379996595,6.0,90.059,89.995,6.0]
[1643379996796,1.5460063,90.058,89.995,6.0]
[1643379996995,7.5460063,90.059,89.969,1.53107677]
[1643379997196,1.5460063,90.052,89.967,24.9039]
[1643379997597,1.5460063,90.05,89.977,6.0]
[1643379997797,1.5460063,90.047,89.974,6.0]
[1643379997997,1.5460063,90.047,89.973,6.0]
[1643379998199,1.5460063,90.047,89.97,6.0]
[1643379998398,1.5460063,90.046,89.97,6.0]
[1643379999000,1.5460063,90.048,89.97,6.0]
[1643379999197,1.5460063,90.046,89.968,6.0]
[1643379999398,1.5460063,90.044,89.969,6.0]
[1643379999599,1.5460063,90.044,89.968,6.0]
[1643379999600,1.5460063,90.043,89.968,6.0]
[1643379999800,1.5460063,90.037,89.962,48.96872359]
[1643380000002,1.5460063,90.045,89.962,48.96872359]
[1643380000204,1.5460063,90.046,89.944,1.53107677]
[1643380000404,1.5460063,90.045,89.953,6.0]
[1643380000803,1.5460063,90.046,89.954,2.26322225]
[1643380001004,16.679,90.04,89.954,2.26322225]
[1643380001205,23.98,90.039,89.955,2.01322225]
[1643380001403,23.98,90.039,89.955,6.0]
[1643380001607,23.98,90.039,89.951,6.0]
[1643380001804,23.98,90.039,89.949,8.01322225]
[1643380002104,23.98,90.039,89.955,2.01322225]
[1643380002305,23.98,90.039,89.949,6.0]
[1643380002505,6.0,90.029,89.95,2.01990032]
[1643380002705,6.0,90.029,89.95,2.26990032]
[1643380003628,6.0,90.029,89.951,2.01990032]
[1643380003826,6.0,90.029,89.952,0.25]
[1643380004229,6.0,90.029,89.953,2.01990032]
[1643380004431,24.0111,90.028,89.953,2.01990032]
[1643380004829,6.0,90.029,89.954,0.25]
[1643380005029,22.6579,90.049,89.963,6.0]
[1643380005235,22.6579,90.049,89.964,45.34153769]
[1643380005431,22.6579,90.049,89.964,47.36820368]
[1643380005833,22.6579,90.049,89.958,6.0]
[1643380006030,22.6579,90.049,89.961,6.0]
[1643380006531,22.6579,90.049,89.96,6.0]
[1643380006732,22.6579,90.049,89.961,35.66484163]
[1643380006931,22.6579,90.049,89.969,6.0]
[1643380007132,22.6579,90.049,89.961,35.66484163]
[1643380007430,134.7579,90.049,89.961,35.66484163]
[1643380007630,134.7579,90.049,89.962,0.25]
[1643380008833,134.7579,90.049,89.961,37.69150762]
[1643380009132,6.0,90.039,89.963,2.02635625]
[1643380009335,6.0,90.039,89.964,0.25]
[1643380010233,24.947,90.038,89.964,0.25]
[1643380010835,22.6579,90.049,89.965,2.02635625]
[1643380011034,1.5460063,90.064,89.975,6.0]
[1643380011238,47.4546,90.078,89.976,43.00266705]
[1643380011435,47.4546,90.078,89.976,45.2790233]
[1643380011635,47.4546,90.078,89.986,6.0]
[1643380011837,47.4546,90.078,89.987,0.25]
[1643380012036,16.674,90.07,89.987,6.25]
[1643380012638,1.5460063,90.081,90.0,13.58]
[1643380012839,1.5460063,90.096,90.001,44.94494112]
[1643380013037,1.5460063,90.099,90.011,6.0]
[1643380013239,1.5460063,90.1,90.012,24.6598]
[1643380013438,1.5460063,90.101,90.02,6.0]
[1643380013637,1.5460063,90.101,90.022,6.0]
[1643380013838,1.5460063,90.102,90.023,0.25]
[1643380014041,1.5460063,90.103,90.031,6.0]
[1643380014342,1.5460063,90.104,90.032,0.25]
[1643380014538,24.4668,90.117,90.032,0.25]
[1643380014539,1.5460063,90.105,90.033,6.0]
[1643380014739,1.5460063,90.11,90.034,42.84850444]
[1643380014939,24.4668,90.117,90.034,42.84850444]
[1643380014940,1.5460063,90.111,90.042,6.0]
[1643380015143,1.5460063,90.111,90.044,6.0]
[1643380015543,1.5460063,90.111,90.05,6.0]
[1643380016145,1.5460063,90.113,90.05,6.0]
[1643380016345,1.5460063,90.116,90.05,6.0]
[1643380016544,26.0128063,90.117,90.05,6.0]
[1643380016746,26.0128063,90.117,90.048,41.48182168]
[1643380016947,1.5460063,90.116,90.048,41.48182168]
[1643380017248,1.5460063,90.116,90.058,6.0]
[1643380017846,26.0128063,90.117,90.058,6.0]
[1643380018047,24.4668,90.117,90.058,6.0]
[1643380018247,24.4668,90.117,90.045,6.0]
[1643380018948,24.4668,90.117,90.046,49.5549916]
[1643380019147,24.4668,90.117,90.046,55.5549916]
[1643380019451,3.36386406,90.137,90.047,0.25]
[1643380019750,3.36386406,90.137,90.05,6.0]
[1643380019947,3.36386406,90.137,90.05,19.58]
[1643380020150,3.36386406,90.137,90.058,6.0]
[1643380020348,48.9095,90.147,90.07,13.58]
[1643380020549,48.9095,90.147,90.08,6.0]
[1643380021048,48.9095,90.147,90.081,2.27635625]
[1643380021248,3.53884351,90.146,90.081,37.84440608]
[1643380021448,3.53884351,90.146,90.091,6.0]
[1643380021647,1.5460063,90.156,90.092,6.0]
[1643380021847,1.5460063,90.163,90.093,0.25]
[1643380022053,1.5460063,90.164,90.093,2.27635625]
[1643380022450,1.5460063,90.163,90.103,6.0]
[1643380022649,1.5460063,90.164,90.104,46.39887348]
[1643380022949,3.47597393,90.192,90.11,13.58]
[1643380023149,3.47597393,90.192,90.12,6.0]
[1643380023549,5.02198023,90.192,90.115,6.0]
[1643380023751,1.5460063,90.205,90.12,2.02635625]
[1643380023950,1.5460063,90.222,90.13,13.58]
[1643380024149,47.4759,90.248,90.13,19.58]
[1643380024350,47.4759,90.248,90.131,2.27635625]
[1643380024553,47.4759,90.248,90.141,6.0]
[1643380024751,3.40604691,90.247,90.15,16.639]
[1643380024951,3.40604691,90.247,90.151,35.91193017]
[1643380025154,6.0,90.237,90.161,6.0]
[1643380025352,6.0,90.237,90.162,0.25]
[1643380025553,6.0,90.237,90.17,6.0]
[1643380025952,6.0,90.237,90.172,6.0]
[1643380026155,6.0,90.237,90.171,0.25]
[1643380026353,6.0,90.237,90.173,6.0]
[1643380026763,6.0,90.237,90.16,13.58]
[1643380027059,6.0,90.237,90.17,6.0]
[1643380027355,6.0,90.237,90.16,16.637]
[1643380027557,6.0,90.237,90.17,6.0]
[1643380027759,6.0,90.237,90.17,21.60749683]
[1643380027955,6.0,90.237,90.171,6.25]
[1643380028157,6.0,90.237,90.181,6.0]
[1643380028557,6.0,90.237,90.189,6.0]
[1643380030561,6.0,90.237,90.18,6.0]
[1643380030762,6.0,90.237,90.16,15.60749683]
[1643380031157,6.0,90.237,90.17,6.0]
[1643380031359,6.0,90.237,90.17,47.74609638]
[1643380031660,6.0,90.237,90.17,41.74609638]
[1643380031861,6.0,90.237,90.171,2.27749683]
[1643380032061,6.0,90.237,90.171,2.02749683]
[1643380032259,6.0,90.237,90.17,41.74609638]
[1643380032260,46.6955,90.268,90.172,0.25]
[1643380032466,46.6955,90.268,90.18,13.58]
[1643380032667,1.5460063,90.299,90.18,13.58]
[1643380032863,3.07051382,90.324,90.18,13.58]
[1643380032864,50.28241382,90.324,90.19,6.0]
[1643380033063,47.2119,90.324,90.201,112.1]
[1643380033261,11.57951348,90.333,90.202,59.70843567]
[1643380033462,11.57951348,90.333,90.212,112.1]
[1643380033664,49.1308,90.351,90.22,13.58]
[1643380033864,49.1308,90.351,90.221,112.35]
[1643380034064,49.1308,90.351,90.231,6.0]
[1643380034264,3.52031691,90.348,90.24,13.58]
[1643380034667,3.52031691,90.348,90.25,6.0]
[1643380034865,3.52031691,90.348,90.25,19.58]
[1643380035066,3.52031691,90.348,90.251,6.0]
[1643380035265,3.52031691,90.348,90.261,39.27297142]
[1643380035668,3.52031691,90.348,90.271,6.0]
[1643380036067,3.52031691,90.348,90.28,6.0]
[1643380036269,3.52031691,90.348,90.26,13.58]
[1643380036470,3.52031691,90.348,90.201,16.8246]
[1643380036471,6.0,90.338,90.231,62.3608]
[1643380036669,3.52031691,90.348,90.241,6.0]
[1643380036891,3.52031691,90.348,90.24,13.58]
[1643380037092,3.52031691,90.348,90.242,49.39941402]
[1643380037294,3.52031691,90.348,90.25,16.62]
[1643380037492,3.52031691,90.348,90.26,13.58]
[1643380038594,6.0,90.338,90.26,13.58]
[1643380039195,3.52031691,90.348,90.27,6.0]
[1643380039394,3.52031691,90.348,90.272,36.51269892]
[1643380039595,3.52031691,90.348,90.282,6.0]
[1643380040400,3.52031691,90.348,90.281,6.0]
[1643380040598,3.52031691,90.348,90.27,6.0]
[1643380040798,3.52031691,90.348,90.25,13.58]
[1643380041096,6.0,90.338,90.25,13.58]
[1643380041998,47.9925,90.337,90.25,13.58]
[1643380042402,47.9925,90.337,90.251,46.63180781]
[1643380044300,47.9925,90.337,90.25,13.58]
[1643380044701,6.0,90.327,90.23,30.203]
[1643380044906,23.7089,90.326,90.24,6.0]
[1643380045803,23.7089,90.326,90.243,6.0]
[1643380046604,23.7089,90.326,90.244,2.02328068]
[1643380046804,23.7089,90.326,90.244,2.27328068]
[1643380047206,23.7089,90.326,90.244,2.02328068]
[1643380047408,23.7089,90.326,90.243,6.0]
[1643380047606,23.7089,90.326,90.25,6.0]
[1643380047805,23.7089,90.326,90.212,2.02328068]
[1643380048005,23.7089,90.326,90.21,13.58]
[1643380048208,1.5460063,90.321,90.21,13.58]
[1643380048406,23.7089,90.326,90.21,13.58]
[1643380048407,1.5460063,90.319,90.21,13.58]
[1643380049107,16.63,90.31,90.21,13.58]
[1643380049310,24.2945,90.309,90.21,13.58]
[1643380049706,1.5460063,90.295,90.211,42.41933088]
[1643380049910,3.07051382,90.321,90.211,42.41933088]
[1643380049911,1.5460063,90.294,90.212,112.1]
[1643380050107,1.5460063,90.317,90.23,16.624]
[1643380050308,1.5460063,90.323,90.24,13.58]
[1643380050611,1.5460063,90.326,90.241,44.31129347]
[1643380050806,1.5460063,90.326,90.241,46.58457415]
[1643380051006,1.5460063,90.326,90.251,6.0]
[1643380051208,1.5460063,90.324,90.251,6.0]
[1643380051407,1.5460063,90.325,90.252,8.02328068]
[1643380051607,1.5460063,90.325,90.252,2.02328068]
[1643380052007,1.5460063,90.325,90.251,6.0]
[1643380052207,1.5460063,90.321,90.23,13.58]
[1643380052411,1.5460063,90.314,90.21,13.58]
[1643380052710,1.5460063,90.309,90.223,6.0]
[1643380053007,1.5460063,90.308,90.224,42.30340423]
[1643380053309,1.5460063,90.307,90.224,42.30340423]
[1643380053509,1.5460063,90.306,90.224,42.30340423]
[1643380053910,1.5460063,90.306,90.225,2.27328068]
[1643380054109,1.5460063,90.318,90.235,6.0]
[1643380054309,1.5460063,90.316,90.24,13.58]
[1643380054509,1.5460063,90.315,90.25,6.0]
[1643380054709,1.5460063,90.316,90.25,6.0]
[1643380054910,1.5460063,90.315,90.25,6.0]
[1643380055109,1.5460063,90.315,90.251,6.0]
[1643380055308,1.5460063,90.318,90.252,46.83128854]
[1643380055709,1.5460063,90.318,90.251,6.0]
[1643380055912,1.5460063,90.309,90.226,2.02328068]
[1643380056110,1.5460063,90.305,90.21,13.58]
[1643380056310,1.5460063,90.303,90.21,13.58]
[1643380056510,1.5460063,90.303,90.21,30.207]
[1643380056709,1.5460063,90.304,90.22,6.0]
[1643380056911,1.5460063,90.305,90.23,13.58]
[1643380057110,1.5460063,90.306,90.23,13.58]
[1643380057311,1.5460063,90.297,90.23,13.58]
[1643380057515,1.5460063,90.298,90.23,13.58]
[1643380057713,1.5460063,90.301,90.23,13.58]
[1643380058313,1.5460063,90.308,90.23,13.58]
[1643380058513,1.5460063,90.301,90.23,13.58]
[1643380058814,1.5460063,90.302,90.23,13.58]
[1643380059312,1.5460063,90.303,90.231,0.25]
[1643380059514,1.5460063,90.303,90.24,6.0]
[1643380059713,1.5460063,90.303,90.241,38.38453033]
[1643380059913,1.5460063,90.307,90.241,38.38453033]
[1643380060117,1.5460063,90.304,90.241,38.38453033]
[1643380060313,1.5460063,90.308,90.242,0.25]
[1643380060513,1.5460063,90.308,90.242,2.27328068]
[1643380060714,1.5460063,90.315,90.243,2.02328068]
[1643380061015,1.5460063,90.302,90.244,0.25]
[1643380061215,1.5460063,90.302,90.242,0.25]
[1643380061415,1.5460063,90.301,90.242,0.25]
[1643380061614,1.5460063,90.3,90.242,0.25]
[1643380062014,1.5460063,90.292,90.242,6.0]
[1643380062216,1.5460063,90.291,90.242,6.0]
[1643380062617,1.5460063,90.289,90.242,6.0]
[1643380062814,1.5460063,90.29,90.212,23.3212]
[1643380063018,4.5852542,90.343,90.212,23.3212]
[1643380063019,1.5460063,90.282,90.212,23.3212]
[1643380063317,1.5460063,90.279,90.212,23.3212]
[1643380063518,1.5460063,90.278,90.212,23.3212]
[1643380064417,1.5460063,90.272,90.212,23.3212]
[1643380065119,1.5460063,90.271,90.195,112.1]
[1643380065318,1.5460063,90.264,90.195,112.1]
[1643380065518,1.5460063,90.264,90.196,48.28200924]
[1643380065718,1.5460063,90.261,90.196,48.28200924]
[1643380065919,1.5460063,90.26,90.197,112.1]
[1643380066120,1.5460063,90.256,90.197,112.1]
[1643380066320,1.5460063,90.259,90.197,112.1]
[1643380066521,3.07673858,90.288,90.197,112.1]
[1643380066522,1.5460063,90.258,90.197,112.1]
[1643380066720,1.5460063,90.257,90.197,112.1]
[1643380067120,1.5460063,90.256,90.197,112.1]
[1643380068225,1.5460063,90.256,90.199,112.1]
[1643380068626,1.5460063,90.257,90.209,118.1]
[1643380068826,1.5460063,90.266,90.21,0.25]
[1643380069228,1.5460063,90.267,90.21,0.25]
[1643380069429,1.5460063,90.267,90.219,6.0]
[1643380069629,1.5460063,90.263,90.21,0.25]
[1643380069831,1.5460063,90.262,90.21,0.25]
[1643380070232,1.5460063,90.262,90.21,6.0]
[1643380070431,1.5460063,90.261,90.201,0.25]
[1643380071045,1.5460063,90.261,90.21,6.0]
[1643380071450,1.5460063,90.261,90.2,30.21]
[1643380071646,1.5460063,90.259,90.2,30.21]
[1643380071846,1.5460063,90.257,90.2,30.21]
[1643380072247,1.5460063,90.257,90.201,2.27328068]
[1643380072450,1.5460063,90.257,90.2,30.21]